[Event "Early-Titled-Tuesday-Blitz-October-03-2023"]
[Site "Chess.com"]
[Date "2023.10.03"]
[Round "3"]
[White "Krakozia"]
[Black "ActorXu"]
[Result "1-0"]
[WhiteElo "3032"]
[BlackElo "2716"]
[TimeControl "180+1"]
[EndTime "8:28:44 PDT"]
[Termination "Krakozia won by resignation"]

1. Nf3 {[%clk 0:03:00.9]} 1... d5 {[%clk 0:02:59.7]} 2. g3 {[%clk 0:03:00.8]}
2... Nf6 {[%clk 0:03:00.4]} 3. Bg2 {[%clk 0:03:00.6]} 3... e6 {[%clk 0:03:01.2]}
4. O-O {[%clk 0:03:00.5]} 4... Be7 {[%clk 0:03:01.9]} 5. c4 {[%clk 0:03:00.2]}
5... O-O {[%clk 0:03:02.4]} 6. cxd5 {[%clk 0:02:58]} 6... exd5 {[%clk
0:03:01.3]} 7. b3 {[%clk 0:02:58.7]} 7... h6 {[%clk 0:02:47.3]} 8. Bb2 {[%clk
0:02:58.4]} 8... Bf5 {[%clk 0:02:48]} 9. Nc3 {[%clk 0:02:48.4]} 9... c6 {[%clk
0:02:29.4]} 10. d3 {[%clk 0:02:44.8]} 10... Nbd7 {[%clk 0:02:19]} 11. Re1 {[%clk
0:02:39.1]} 11... Nc5 {[%clk 0:02:13.7]} 12. b4 {[%clk 0:02:32.6]} 12... Ne6
{[%clk 0:02:11]} 13. e4 {[%clk 0:02:13.1]} 13... dxe4 {[%clk 0:02:04.9]} 14.
dxe4 {[%clk 0:02:13]} 14... Bg4 {[%clk 0:02:02.9]} 15. a3 {[%clk 0:01:53.3]}
15... a5 {[%clk 0:02:01.7]} 16. b5 {[%clk 0:01:50.9]} 16... Qb6 {[%clk
0:01:49.3]} 17. e5 {[%clk 0:01:43.6]} 17... Rfd8 {[%clk 0:01:34.2]} 18. Qb1
{[%clk 0:01:42.4]} 18... Nd5 {[%clk 0:01:26.1]} 19. bxc6 {[%clk 0:01:25.8]}
19... bxc6 {[%clk 0:01:06.9]} 20. Qc1 {[%clk 0:01:19.2]} 20... Bxf3 {[%clk
0:00:47.2]} 21. Bxf3 {[%clk 0:01:19]} 21... Nd4 {[%clk 0:00:47.8]} 22. Bd1
{[%clk 0:01:19]} 22... Bg5 {[%clk 0:00:38.2]} 23. Nxd5 {[%clk 0:00:58.9]} 23...
Rxd5 {[%clk 0:00:26.2]} 24. Bxd4 {[%clk 0:00:56.1]} 24... Qxd4 {[%clk
0:00:21.9]} 25. Qxc6 {[%clk 0:00:52.4]} 25... Qxa1 {[%clk 0:00:14.8]} 26. Qxd5
{[%clk 0:00:42.9]} 26... Rd8 {[%clk 0:00:14.2]} 27. Qxf7+ {[%clk 0:00:42.6]}
27... Kh8 {[%clk 0:00:10.3]} 28. Qf3 {[%clk 0:00:35.5]} 28... Be7 {[%clk
0:00:05]} 29. Qe2 {[%clk 0:00:28.6]} 29... Bxa3 {[%clk 0:00:04.4]} 30. Bc2
{[%clk 0:00:27.1]} 30... Qd4 {[%clk 0:00:04.1]} 31. Rd1 {[%clk 0:00:25.7]} 31...
Bc5 {[%clk 0:00:01.9]} 32. Rxd4 {[%clk 0:00:24.9]} 32... Bxd4 {[%clk 0:00:02.8]}
33. Qe4 {[%clk 0:00:24.4]} 33... Kg8 {[%clk 0:00:03.3]} 34. e6 {[%clk
0:00:23.3]} 34... Kf8 {[%clk 0:00:02.8]} 35. e7+ {[%clk 0:00:22.8]} 1-0

[Event "Early-Titled-Tuesday-Blitz-October-03-2023"]
[Site "Chess.com"]
[Date "2023.10.03"]
[Round "3"]
[White "LaPiToB"]
[Black "carokannlover213"]
[Result "0-1"]
[WhiteElo "2294"]
[BlackElo "2754"]
[TimeControl "180+1"]
[EndTime "8:28:45 PDT"]
[Termination "carokannlover213 won by resignation"]

1. d4 {[%clk 0:03:00.9]} 1... Nf6 {[%clk 0:02:58.1]} 2. c4 {[%clk 0:03:00.6]}
2... g6 {[%clk 0:02:56.7]} 3. Nc3 {[%clk 0:03:00.4]} 3... Bg7 {[%clk 0:02:56.5]}
4. e4 {[%clk 0:03:00.4]} 4... O-O {[%clk 0:02:56.7]} 5. Be2 {[%clk 0:03:00.5]}
5... c5 {[%clk 0:02:56.6]} 6. d5 {[%clk 0:02:59.2]} 6... e6 {[%clk 0:02:56.8]}
7. Bg5 {[%clk 0:02:58.1]} 7... h6 {[%clk 0:02:54]} 8. Be3 {[%clk 0:02:57.8]}
8... exd5 {[%clk 0:02:52.2]} 9. exd5 {[%clk 0:02:56.6]} 9... d6 {[%clk
0:02:50.4]} 10. h3 {[%clk 0:02:53.8]} 10... Re8 {[%clk 0:02:49]} 11. Qd2 {[%clk
0:02:47.8]} 11... Kh7 {[%clk 0:02:42.9]} 12. Nf3 {[%clk 0:02:46.2]} 12... Bf5
{[%clk 0:02:18.2]} 13. O-O {[%clk 0:02:35.8]} 13... Ne4 {[%clk 0:02:17.9]} 14.
Nxe4 {[%clk 0:02:32.1]} 14... Bxe4 {[%clk 0:02:18.8]} 15. Ne1 {[%clk 0:02:10.7]}
15... Qb6 {[%clk 0:02:14.6]} 16. Nd3 {[%clk 0:01:55.2]} 16... Nd7 {[%clk
0:02:10.2]} 17. Rad1 {[%clk 0:01:30.1]} 17... Qa6 {[%clk 0:02:03.9]} 18. b3
{[%clk 0:01:27.8]} 18... Qb6 {[%clk 0:01:53.2]} 19. f3 {[%clk 0:01:11.7]} 19...
Bxd3 {[%clk 0:01:42.7]} 20. Qxd3 {[%clk 0:01:11.7]} 20... Rxe3 {[%clk
0:00:50.5]} 21. Qxe3 {[%clk 0:01:10.7]} 21... Bd4 {[%clk 0:00:51.1]} 22. Rxd4
{[%clk 0:01:10.8]} 22... cxd4 {[%clk 0:00:52]} 23. Qe7 {[%clk 0:01:07.8]} 23...
d3+ {[%clk 0:00:27.5]} 24. Kh2 {[%clk 0:01:05.5]} 24... dxe2 {[%clk 0:00:23.8]}
25. Re1 {[%clk 0:00:50.6]} 25... Kg7 {[%clk 0:00:15.1]} 26. Rxe2 {[%clk
0:00:45.5]} 26... Nf6 {[%clk 0:00:15.2]} 27. Re6 {[%clk 0:00:43.5]} 27... Qd4
{[%clk 0:00:07.4]} 28. Rxd6 {[%clk 0:00:38.9]} 28... Qf4+ {[%clk 0:00:05]} 29.
Kg1 {[%clk 0:00:35.7]} 29... Re8 {[%clk 0:00:02.7]} 30. Rxf6 {[%clk 0:00:32.4]}
30... Qc1+ {[%clk 0:00:01.9]} 31. Kh2 {[%clk 0:00:32.5]} 31... Rxe7 {[%clk
0:00:02.6]} 32. d6 {[%clk 0:00:25]} 32... Kxf6 {[%clk 0:00:02.1]} 33. dxe7
{[%clk 0:00:25.4]} 33... Kxe7 {[%clk 0:00:03]} 34. Kg3 {[%clk 0:00:25.6]} 34...
Qe3 {[%clk 0:00:03.3]} 35. h4 {[%clk 0:00:26.4]} 35... Qc5 {[%clk 0:00:03.9]}
36. Kh2 {[%clk 0:00:27]} 36... Qc7+ {[%clk 0:00:04.8]} 37. Kg1 {[%clk
0:00:27.6]} 37... Ke6 {[%clk 0:00:05.7]} 38. Kf2 {[%clk 0:00:28.2]} 38... Kf5
{[%clk 0:00:06.6]} 39. g3 {[%clk 0:00:28.5]} 39... Ke5 {[%clk 0:00:07.5]} 40. g4
{[%clk 0:00:29.1]} 40... Kd4 {[%clk 0:00:08.4]} 41. h5 {[%clk 0:00:29.5]} 41...
Qf4 {[%clk 0:00:08.6]} 42. hxg6 {[%clk 0:00:29.9]} 42... fxg6 {[%clk 0:00:09.5]}
43. Kg2 {[%clk 0:00:30.3]} 43... h5 {[%clk 0:00:10]} 44. Kh3 {[%clk 0:00:31.2]}
44... hxg4+ {[%clk 0:00:10.3]} 45. fxg4 {[%clk 0:00:31.3]} 45... g5 {[%clk
0:00:11.2]} 0-1

[Event "Early-Titled-Tuesday-Blitz-October-03-2023"]
[Site "Chess.com"]
[Date "2023.10.03"]
[Round "3"]
[White "Man-Chuk"]
[Black "brm72"]
[Result "1-0"]
[WhiteElo "2788"]
[BlackElo "2500"]
[TimeControl "180+1"]
[EndTime "8:28:45 PDT"]
[Termination "Man-Chuk won on time"]

1. e4 {[%clk 0:03:00.9]} 1... c5 {[%clk 0:03:00]} 2. Nf3 {[%clk 0:02:56]} 2...
d6 {[%clk 0:03:00]} 3. Bb5+ {[%clk 0:02:54.9]} 3... Nd7 {[%clk 0:02:59.4]} 4.
O-O {[%clk 0:02:53.8]} 4... a6 {[%clk 0:02:57.2]} 5. Bd3 {[%clk 0:02:53.7]} 5...
Ngf6 {[%clk 0:02:55.8]} 6. Re1 {[%clk 0:02:53.3]} 6... b5 {[%clk 0:02:46.9]} 7.
c3 {[%clk 0:02:44.7]} 7... c4 {[%clk 0:02:35]} 8. Bc2 {[%clk 0:02:44.5]} 8... g6
{[%clk 0:02:31.9]} 9. b3 {[%clk 0:02:39.7]} 9... Bg7 {[%clk 0:02:12.6]} 10. Na3
{[%clk 0:02:39]} 10... Qc7 {[%clk 0:02:03.2]} 11. Qe2 {[%clk 0:02:38.6]} 11...
Nb6 {[%clk 0:02:02.6]} 12. e5 {[%clk 0:02:26.8]} 12... dxe5 {[%clk 0:02:01]} 13.
Qxe5 {[%clk 0:02:21.5]} 13... Qxe5 {[%clk 0:01:39.6]} 14. Nxe5 {[%clk
0:02:21.5]} 14... cxb3 {[%clk 0:01:31.1]} 15. axb3 {[%clk 0:02:14.3]} 15... O-O
{[%clk 0:01:25.2]} 16. d4 {[%clk 0:02:13.5]} 16... Bb7 {[%clk 0:01:00.7]} 17. c4
{[%clk 0:02:09]} 17... Rfd8 {[%clk 0:00:42.4]} 18. Be3 {[%clk 0:02:08.6]} 18...
b4 {[%clk 0:00:32.9]} 19. Nb1 {[%clk 0:02:08.5]} 19... Be4 {[%clk 0:00:29.7]}
20. Bxe4 {[%clk 0:01:58.6]} 20... Nxe4 {[%clk 0:00:30.6]} 21. Nc6 {[%clk
0:01:59]} 21... Re8 {[%clk 0:00:26.1]} 22. f3 {[%clk 0:01:51.4]} 22... Nc3
{[%clk 0:00:19.7]} 23. Nxb4 {[%clk 0:01:49]} 23... Nxb1 {[%clk 0:00:16.3]} 24.
Rexb1 {[%clk 0:01:49.9]} 24... a5 {[%clk 0:00:12.5]} 25. Nc6 {[%clk 0:01:50.3]}
25... a4 {[%clk 0:00:12.8]} 26. bxa4 {[%clk 0:00:37.9]} 26... Nxc4 {[%clk
0:00:12.5]} 27. Bf2 {[%clk 0:00:38.3]} 27... Ra6 {[%clk 0:00:10.2]} 28. Nb4
{[%clk 0:00:32.8]} 28... Ra5 {[%clk 0:00:08.5]} 29. Ra2 {[%clk 0:00:29.9]} 29...
Rea8 {[%clk 0:00:07.8]} 30. Nc6 {[%clk 0:00:30.2]} 30... R5a6 {[%clk 0:00:06.1]}
31. Nxe7+ {[%clk 0:00:28.7]} 31... Kf8 {[%clk 0:00:06.6]} 32. Nd5 {[%clk
0:00:28.6]} 32... R6a7 {[%clk 0:00:02.7]} 33. Rb4 {[%clk 0:00:24.7]} 33... Na5
{[%clk 0:00:02.9]} 34. Rc2 {[%clk 0:00:22.9]} 34... Rd8 {[%clk 0:00:02.8]} 35.
Nb6 {[%clk 0:00:19.9]} 35... Rb7 {[%clk 0:00:01.9]} 36. d5 {[%clk 0:00:20.1]}
1-0

[Event "Early-Titled-Tuesday-Blitz-October-03-2023"]
[Site "Chess.com"]
[Date "2023.10.03"]
[Round "3"]
[White "Maus7"]
[Black "Zurability"]
[Result "0-1"]
[WhiteElo "2476"]
[BlackElo "2724"]
[TimeControl "180+1"]
[EndTime "8:28:46 PDT"]
[Termination "Zurability won on time"]

1. e4 {[%clk 0:03:00.9]} 1... c5 {[%clk 0:02:59.7]} 2. Nf3 {[%clk 0:03:01.4]}
2... d6 {[%clk 0:02:59.2]} 3. d4 {[%clk 0:03:02.1]} 3... cxd4 {[%clk 0:03:00.1]}
4. Nxd4 {[%clk 0:03:02.7]} 4... Nf6 {[%clk 0:03:01]} 5. Nc3 {[%clk 0:03:03.2]}
5... g6 {[%clk 0:03:01.9]} 6. Be3 {[%clk 0:03:02.8]} 6... Bg7 {[%clk 0:03:02.6]}
7. f3 {[%clk 0:03:03.6]} 7... a6 {[%clk 0:03:02.2]} 8. Qd2 {[%clk 0:03:02.4]}
8... Nbd7 {[%clk 0:02:59.7]} 9. O-O-O {[%clk 0:02:58.3]} 9... b5 {[%clk
0:02:59.3]} 10. Bh6 {[%clk 0:02:48.6]} 10... Bxh6 {[%clk 0:02:59.3]} 11. Qxh6
{[%clk 0:02:49.4]} 11... Bb7 {[%clk 0:02:59.5]} 12. h4 {[%clk 0:02:36.7]} 12...
Rc8 {[%clk 0:02:58.9]} 13. Nce2 {[%clk 0:02:18.8]} 13... Ne5 {[%clk 0:02:33.4]}
14. Kb1 {[%clk 0:02:18.1]} 14... Qc7 {[%clk 0:02:22]} 15. Rc1 {[%clk 0:01:47.9]}
15... d5 {[%clk 0:02:13.5]} 16. exd5 {[%clk 0:01:44.9]} 16... Bxd5 {[%clk
0:02:09.1]} 17. Nc3 {[%clk 0:01:44.8]} 17... Bc4 {[%clk 0:02:02.6]} 18. h5
{[%clk 0:01:18.5]} 18... Nxh5 {[%clk 0:01:55.1]} 19. Bxc4 {[%clk 0:00:45.6]}
19... Nxc4 {[%clk 0:01:56]} 20. Rxh5 {[%clk 0:00:22.3]} 20... gxh5 {[%clk
0:01:50.7]} 21. Re1 {[%clk 0:00:22.9]} 21... Rg8 {[%clk 0:00:30.3]} 22. Nd5
{[%clk 0:00:20.1]} 22... Qd6 {[%clk 0:00:24.5]} 23. Qxd6 {[%clk 0:00:04.9]}
23... Nxd6 {[%clk 0:00:24.4]} 24. Nxe7 {[%clk 0:00:05.7]} 24... Kd7 {[%clk
0:00:22.1]} 25. Nxg8 {[%clk 0:00:06.3]} 25... Rxg8 {[%clk 0:00:22]} 26. Rg1
{[%clk 0:00:03]} 26... h4 {[%clk 0:00:21.8]} 27. Ne2 {[%clk 0:00:02.2]} 27...
Nf5 {[%clk 0:00:19.1]} 28. Kc1 {[%clk 0:00:02.1]} 28... Ne3 {[%clk 0:00:18.4]}
29. Kd2 {[%clk 0:00:02.2]} 29... Nxg2 {[%clk 0:00:16.8]} 30. Nf4 {[%clk
0:00:02.2]} 30... Rg3 {[%clk 0:00:08.1]} 31. Rxg2 {[%clk 0:00:01.4]} 31... Rxg2+
{[%clk 0:00:08.4]} 32. Nxg2 {[%clk 0:00:01.8]} 32... h3 {[%clk 0:00:09]} 33. Ke2
{[%clk 0:00:01.4]} 33... h2 {[%clk 0:00:08.6]} 0-1

[Event "Early-Titled-Tuesday-Blitz-October-03-2023"]
[Site "Chess.com"]
[Date "2023.10.03"]
[Round "3"]
[White "stasOR4ik"]
[Black "curradogianfigliazzi"]
[Result "0-1"]
[WhiteElo "2434"]
[BlackElo "2260"]
[TimeControl "180+1"]
[EndTime "8:28:46 PDT"]
[Termination "curradogianfigliazzi won by resignation"]

1. e4 {[%clk 0:03:00.9]} 1... c5 {[%clk 0:02:59.7]} 2. c3 {[%clk 0:02:51.7]}
2... g6 {[%clk 0:02:58.1]} 3. d4 {[%clk 0:02:51.9]} 3... cxd4 {[%clk 0:02:57.2]}
4. cxd4 {[%clk 0:02:52]} 4... d5 {[%clk 0:02:54.6]} 5. e5 {[%clk 0:02:49.7]}
5... Nc6 {[%clk 0:02:53.1]} 6. Nc3 {[%clk 0:02:44.4]} 6... Bg7 {[%clk
0:02:52.3]} 7. f4 {[%clk 0:02:44.2]} 7... Nh6 {[%clk 0:02:47.6]} 8. Nf3 {[%clk
0:02:30]} 8... Bg4 {[%clk 0:02:46.6]} 9. Be3 {[%clk 0:02:27.8]} 9... Nf5 {[%clk
0:02:46.2]} 10. Bf2 {[%clk 0:02:27.4]} 10... Bxf3 {[%clk 0:02:23.5]} 11. Qxf3
{[%clk 0:02:10.4]} 11... Ncxd4 {[%clk 0:02:07.7]} 12. Qd3 {[%clk 0:02:08]} 12...
Nc6 {[%clk 0:01:51.7]} 13. O-O-O {[%clk 0:01:57.9]} 13... e6 {[%clk 0:01:46.7]}
14. g4 {[%clk 0:01:57.7]} 14... Nfe7 {[%clk 0:01:42.9]} 15. Rg1 {[%clk
0:01:53.7]} 15... Qa5 {[%clk 0:01:31.4]} 16. Kb1 {[%clk 0:01:46.7]} 16... O-O-O
{[%clk 0:01:28.4]} 17. Nb5 {[%clk 0:01:35.7]} 17... Kb8 {[%clk 0:01:28.2]} 18.
Bc5 {[%clk 0:01:29.9]} 18... Nc8 {[%clk 0:01:01.1]} 19. Qb3 {[%clk 0:01:17.7]}
19... a6 {[%clk 0:00:58.9]} 20. Bd6+ {[%clk 0:01:16.3]} 20... Nxd6 {[%clk
0:00:58]} 21. Nxd6 {[%clk 0:01:16.2]} 21... Qc7 {[%clk 0:00:55]} 22. Bxa6 {[%clk
0:01:13.1]} 22... Na5 {[%clk 0:00:53.3]} 23. Qb4 {[%clk 0:01:06.8]} 23... Rd7
{[%clk 0:00:36.8]} 24. Rc1 {[%clk 0:01:05.4]} 24... Nc6 {[%clk 0:00:28.9]} 25.
Qb5 {[%clk 0:00:36.3]} 25... Bf8 {[%clk 0:00:25.9]} 26. Bxb7 {[%clk 0:00:15.8]}
26... Na7 {[%clk 0:00:23.3]} 27. Qxd7 {[%clk 0:00:14]} 27... Qxd7 {[%clk
0:00:21.9]} 28. Ba6 {[%clk 0:00:12.3]} 28... Bxd6 {[%clk 0:00:21.3]} 29. exd6
{[%clk 0:00:13.2]} 29... Qxd6 {[%clk 0:00:21.8]} 30. Bd3 {[%clk 0:00:13.3]}
30... Nc6 {[%clk 0:00:21.2]} 31. Rc2 {[%clk 0:00:13.2]} 31... Nb4 {[%clk
0:00:21.5]} 32. Rc3 {[%clk 0:00:12.7]} 32... Nxd3 {[%clk 0:00:21.8]} 33. Rxd3
{[%clk 0:00:13.6]} 33... Rc8 {[%clk 0:00:21.7]} 34. Rgg3 {[%clk 0:00:13]} 34...
Qxf4 {[%clk 0:00:21.7]} 35. a3 {[%clk 0:00:11.1]} 35... Qc1+ {[%clk 0:00:20.7]}
36. Ka2 {[%clk 0:00:11.4]} 36... Qc4+ {[%clk 0:00:21.3]} 37. Rb3+ {[%clk
0:00:11.8]} 37... Ka7 {[%clk 0:00:20.4]} 38. Rf3 {[%clk 0:00:11.1]} 38... Rb8
{[%clk 0:00:20.7]} 39. a4 {[%clk 0:00:11]} 39... Rxb3 {[%clk 0:00:20.7]} 40.
Rxb3 {[%clk 0:00:10.9]} 40... d4 {[%clk 0:00:19.7]} 41. Ka3 {[%clk 0:00:10.8]}
41... d3 {[%clk 0:00:19.9]} 0-1

[Event "Early-Titled-Tuesday-Blitz-October-03-2023"]
[Site "Chess.com"]
[Date "2023.10.03"]
[Round "3"]
[White "Hrant_ChessMood"]
[Black "Frolyanov_D"]
[Result "1-0"]
[WhiteElo "2916"]
[BlackElo "2671"]
[TimeControl "180+1"]
[EndTime "8:28:47 PDT"]
[Termination "Hrant_ChessMood won on time"]

1. d4 {[%clk 0:02:28.1]} 1... d5 {[%clk 0:02:59.2]} 2. c4 {[%clk 0:02:27.8]}
2... e6 {[%clk 0:02:58.8]} 3. Nc3 {[%clk 0:02:25.7]} 3... c6 {[%clk 0:02:59]} 4.
e3 {[%clk 0:02:26.4]} 4... Bd6 {[%clk 0:02:56.5]} 5. Nf3 {[%clk 0:02:23.4]} 5...
f5 {[%clk 0:02:56]} 6. Be2 {[%clk 0:02:21.4]} 6... Nf6 {[%clk 0:02:55.9]} 7. Ne5
{[%clk 0:02:19]} 7... O-O {[%clk 0:02:55.3]} 8. f4 {[%clk 0:02:18.6]} 8... b6
{[%clk 0:02:54.6]} 9. O-O {[%clk 0:02:15.5]} 9... Bb7 {[%clk 0:02:54.6]} 10. b3
{[%clk 0:02:02.6]} 10... Nbd7 {[%clk 0:02:54]} 11. Bb2 {[%clk 0:02:02.2]} 11...
Qe7 {[%clk 0:02:51]} 12. Bf3 {[%clk 0:01:59.6]} 12... Ne4 {[%clk 0:02:43.7]} 13.
Nxe4 {[%clk 0:01:58.1]} 13... dxe4 {[%clk 0:02:39.8]} 14. Be2 {[%clk 0:01:56.9]}
14... Nxe5 {[%clk 0:02:36.3]} 15. fxe5 {[%clk 0:01:50.8]} 15... Bc7 {[%clk
0:02:35.2]} 16. c5 {[%clk 0:01:47]} 16... bxc5 {[%clk 0:02:29.1]} 17. Ba3 {[%clk
0:01:46.9]} 17... Qg5 {[%clk 0:02:27.5]} 18. Bxc5 {[%clk 0:01:11.8]} 18... Qxe3+
{[%clk 0:02:26.2]} 19. Kh1 {[%clk 0:01:12.7]} 19... f4 {[%clk 0:02:17.8]} 20.
Bc4 {[%clk 0:01:11.7]} 20... f3 {[%clk 0:02:12.3]} 21. Bxe6+ {[%clk 0:00:56.6]}
21... Kh8 {[%clk 0:02:12]} 22. Qc2 {[%clk 0:00:57.2]} 22... Ba6 {[%clk
0:01:36.7]} 23. Bc4 {[%clk 0:00:56.2]} 23... Bxc4 {[%clk 0:01:34.7]} 24. bxc4
{[%clk 0:00:57.1]} 24... f2 {[%clk 0:00:39.5]} 25. Bxf8 {[%clk 0:00:35.2]} 25...
Rxf8 {[%clk 0:00:40.4]} 26. Rad1 {[%clk 0:00:35.5]} 26... Qf4 {[%clk 0:00:39.2]}
27. Qe2 {[%clk 0:00:32.1]} 27... e3 {[%clk 0:00:39.3]} 28. Rd3 {[%clk
0:00:31.9]} 28... c5 {[%clk 0:00:36.6]} 29. Rxe3 {[%clk 0:00:30.2]} 29... Qxd4
{[%clk 0:00:28.9]} 30. e6 {[%clk 0:00:29.3]} 30... Qd6 {[%clk 0:00:22.6]} 31. g3
{[%clk 0:00:21]} 31... Qc6+ {[%clk 0:00:19.7]} 32. Re4 {[%clk 0:00:21.6]} 32...
Bd8 {[%clk 0:00:13.3]} 33. h4 {[%clk 0:00:16]} 33... Be7 {[%clk 0:00:08.2]} 34.
Kh2 {[%clk 0:00:16.5]} 34... Rf6 {[%clk 0:00:06]} 35. Re3 {[%clk 0:00:16.7]}
35... h6 {[%clk 0:00:05.8]} 36. Rxf2 {[%clk 0:00:16.5]} 1-0

[Event "Early-Titled-Tuesday-Blitz-October-03-2023"]
[Site "Chess.com"]
[Date "2023.10.03"]
[Round "3"]
[White "sonicdravise"]
[Black "ChessLover0108"]
[Result "0-1"]
[WhiteElo "2658"]
[BlackElo "2914"]
[TimeControl "180+1"]
[EndTime "8:28:47 PDT"]
[Termination "ChessLover0108 won by checkmate"]

1. d4 {[%clk 0:03:00.9]} 1... Nf6 {[%clk 0:02:59.3]} 2. c4 {[%clk 0:03:00.6]}
2... g6 {[%clk 0:02:59.9]} 3. Nc3 {[%clk 0:03:01.2]} 3... Bg7 {[%clk 0:03:00.6]}
4. e4 {[%clk 0:03:01.4]} 4... O-O {[%clk 0:03:01.5]} 5. Nf3 {[%clk 0:03:01.4]}
5... d6 {[%clk 0:03:01.6]} 6. Be2 {[%clk 0:03:02]} 6... e5 {[%clk 0:03:01.7]} 7.
O-O {[%clk 0:03:02.6]} 7... Bg4 {[%clk 0:03:01.4]} 8. Be3 {[%clk 0:02:55]} 8...
Bxf3 {[%clk 0:02:47.1]} 9. Bxf3 {[%clk 0:02:54.6]} 9... Nc6 {[%clk 0:02:47.8]}
10. d5 {[%clk 0:02:52.6]} 10... Nd4 {[%clk 0:02:48]} 11. Bxd4 {[%clk 0:02:48.9]}
11... exd4 {[%clk 0:02:48.9]} 12. Qxd4 {[%clk 0:02:49.3]} 12... Re8 {[%clk
0:02:49.8]} 13. Qd2 {[%clk 0:02:40.3]} 13... Nd7 {[%clk 0:02:49.6]} 14. Rfe1
{[%clk 0:02:29.1]} 14... a5 {[%clk 0:02:47.3]} 15. Rad1 {[%clk 0:02:19.3]} 15...
Nc5 {[%clk 0:02:44.7]} 16. Qc2 {[%clk 0:02:18.8]} 16... Qf6 {[%clk 0:02:39.5]}
17. Nb5 {[%clk 0:02:07.4]} 17... Re7 {[%clk 0:02:39.6]} 18. b3 {[%clk
0:01:50.8]} 18... Rae8 {[%clk 0:02:23.1]} 19. Re3 {[%clk 0:01:42.7]} 19... h5
{[%clk 0:02:10]} 20. Rde1 {[%clk 0:01:33.9]} 20... h4 {[%clk 0:01:57]} 21. Qe2
{[%clk 0:00:58]} 21... Bh6 {[%clk 0:01:39.7]} 22. Rd3 {[%clk 0:00:46]} 22...
Nxd3 {[%clk 0:01:29.6]} 23. Qxd3 {[%clk 0:00:46.9]} 23... Bg7 {[%clk 0:01:13.3]}
24. g3 {[%clk 0:00:44.5]} 24... h3 {[%clk 0:01:08.8]} 25. Rd1 {[%clk 0:00:25.3]}
25... Qb2 {[%clk 0:01:02.5]} 26. Bg4 {[%clk 0:00:20.4]} 26... Rxe4 {[%clk
0:00:55.3]} 27. Bxh3 {[%clk 0:00:20]} 27... Qxa2 {[%clk 0:00:53.6]} 28. Nxc7
{[%clk 0:00:17.1]} 28... Rd4 {[%clk 0:00:47.9]} 29. Qb1 {[%clk 0:00:06.4]} 29...
Rxd1+ {[%clk 0:00:34.8]} 30. Qxd1 {[%clk 0:00:06.1]} 30... Re2 {[%clk
0:00:35.7]} 31. Qf1 {[%clk 0:00:03.1]} 31... Bd4 {[%clk 0:00:36.2]} 32. Nb5
{[%clk 0:00:01.4]} 32... Bxf2+ {[%clk 0:00:34.6]} 33. Kh1 {[%clk 0:00:02.1]}
33... Re1 {[%clk 0:00:34.9]} 34. Kg2 {[%clk 0:00:01.1]} 34... Bc5+ {[%clk
0:00:31.3]} 35. Kf3 {[%clk 0:00:01.1]} 35... Rxf1+ {[%clk 0:00:31.7]} 36. Bxf1
{[%clk 0:00:02]} 36... Qf2+ {[%clk 0:00:32.1]} 37. Kg4 {[%clk 0:00:02.8]} 37...
Qxf1 {[%clk 0:00:33]} 38. Kh4 {[%clk 0:00:02.3]} 38... Qe2 {[%clk 0:00:31.5]}
39. h3 {[%clk 0:00:02.1]} 39... Qh5# {[%clk 0:00:31.6]} 0-1

[Event "Early-Titled-Tuesday-Blitz-October-03-2023"]
[Site "Chess.com"]
[Date "2023.10.03"]
[Round "3"]
[White "Firouzja2003"]
[Black "ChessQueen"]
[Result "1-0"]
[WhiteElo "3112"]
[BlackElo "2736"]
[TimeControl "180+1"]
[EndTime "8:28:48 PDT"]
[Termination "Firouzja2003 won by resignation"]

1. d4 {[%clk 0:02:59.5]} 1... Nf6 {[%clk 0:02:59.6]} 2. Bg5 {[%clk 0:02:59.2]}
2... d5 {[%clk 0:02:55.9]} 3. e3 {[%clk 0:02:58.1]} 3... c5 {[%clk 0:02:48.3]}
4. Bxf6 {[%clk 0:02:58.1]} 4... gxf6 {[%clk 0:02:47.7]} 5. dxc5 {[%clk
0:02:58.2]} 5... Bg7 {[%clk 0:02:31.8]} 6. Nd2 {[%clk 0:02:50.4]} 6... f5 {[%clk
0:02:24.9]} 7. c3 {[%clk 0:02:50]} 7... Nd7 {[%clk 0:02:24.9]} 8. Qa4 {[%clk
0:02:24.5]} 8... O-O {[%clk 0:02:22]} 9. Nb3 {[%clk 0:02:24.5]} 9... Qc7 {[%clk
0:02:14.4]} 10. Qa3 {[%clk 0:02:21.2]} 10... Rd8 {[%clk 0:02:07.3]} 11. Nf3
{[%clk 0:02:19.6]} 11... e6 {[%clk 0:01:54.3]} 12. Bb5 {[%clk 0:02:17.3]} 12...
Bf8 {[%clk 0:01:47.7]} 13. Bxd7 {[%clk 0:02:16.9]} 13... Bxd7 {[%clk 0:01:48.1]}
14. O-O {[%clk 0:02:14]} 14... a5 {[%clk 0:01:43]} 15. Nbd4 {[%clk 0:02:03.5]}
15... Bxc5 {[%clk 0:01:35.1]} 16. Qb3 {[%clk 0:02:03]} 16... e5 {[%clk
0:01:07.3]} 17. Ne2 {[%clk 0:01:48.5]} 17... Be6 {[%clk 0:00:59.7]} 18. Qa4
{[%clk 0:01:48.2]} 18... Kh8 {[%clk 0:00:57.4]} 19. Qh4 {[%clk 0:01:42.8]} 19...
Be7 {[%clk 0:00:57.2]} 20. Qh5 {[%clk 0:01:40]} 20... Rg8 {[%clk 0:00:50.2]} 21.
Ng3 {[%clk 0:01:39.2]} 21... f4 {[%clk 0:00:39.6]} 22. exf4 {[%clk 0:01:38.7]}
22... exf4 {[%clk 0:00:37.1]} 23. Nf5 {[%clk 0:01:36]} 23... Bf6 {[%clk
0:00:29.4]} 24. Rfe1 {[%clk 0:01:21.5]} 24... Ra6 {[%clk 0:00:28]} 25. h3 {[%clk
0:01:11.1]} 25... Qd8 {[%clk 0:00:22]} 26. N5d4 {[%clk 0:01:09]} 26... Rg6
{[%clk 0:00:17]} 27. Ne5 {[%clk 0:01:07.8]} 27... Bxe5 {[%clk 0:00:13.8]} 28.
Qxe5+ {[%clk 0:01:07.2]} 28... Qf6 {[%clk 0:00:12.5]} 29. Qxf6+ {[%clk
0:01:03.1]} 29... Rxf6 {[%clk 0:00:12.9]} 30. Re5 {[%clk 0:01:02.6]} 30... Rb6
{[%clk 0:00:08.7]} 31. b3 {[%clk 0:01:02.8]} 31... Kg7 {[%clk 0:00:09]} 32. Rae1
{[%clk 0:01:02.2]} 32... Rg6 {[%clk 0:00:08.9]} 33. Kh2 {[%clk 0:01:01.3]} 33...
Rf6 {[%clk 0:00:07.2]} 34. f3 {[%clk 0:01:00.3]} 34... Rg6 {[%clk 0:00:07.1]}
35. Rh5 {[%clk 0:00:59.6]} 35... h6 {[%clk 0:00:06.8]} 36. Ree5 {[%clk 0:00:50]}
36... Kf6 {[%clk 0:00:06.2]} 37. Re1 {[%clk 0:00:47.4]} 37... Kg7 {[%clk
0:00:06]} 38. Rh4 {[%clk 0:00:47]} 38... Rf6 {[%clk 0:00:05.9]} 39. Rd1 {[%clk
0:00:47]} 39... a4 {[%clk 0:00:05.2]} 40. b4 {[%clk 0:00:45.5]} 40... Ra6 {[%clk
0:00:04.9]} 41. a3 {[%clk 0:00:44.8]} 41... Ra8 {[%clk 0:00:05]} 42. Ne2 {[%clk
0:00:41.8]} 42... Rc8 {[%clk 0:00:04.8]} 43. Nxf4 {[%clk 0:00:42.4]} 43... Rf5
{[%clk 0:00:03.6]} 44. Rd3 {[%clk 0:00:41.3]} 44... Rc4 {[%clk 0:00:03.2]} 45.
Nxe6+ {[%clk 0:00:40.4]} 45... fxe6 {[%clk 0:00:03.5]} 46. Rxc4 {[%clk
0:00:40.6]} 46... dxc4 {[%clk 0:00:04.4]} 47. Rd7+ {[%clk 0:00:40.5]} 47... Kg6
{[%clk 0:00:04.2]} 48. Rxb7 {[%clk 0:00:40.8]} 48... Rd5 {[%clk 0:00:04.8]} 49.
Rc7 {[%clk 0:00:41]} 1-0